[Event "Titled Tuesday Blitz January 10 Early 2023"]
[White "Kaminski, Victor"]
[Black "Joubert, Dantelle"]
[WhiteFideId "1131630"]
[BlackFideId "14310813"]
[WhiteElo "2247"]
[BlackElo "1566"]
[Result "1-0"]
[Round "10"]
[TimeControl "180+2"]
[Date "2023.01.10"]
[WhiteClock "0:02:40"]
[BlackClock "0:02:03"]

1. e4 {[%clk 0:03:00]}  d5 {[%clk 0:02:59]} 2. exd5 {[%clk 0:03:00]}  Qxd5 {[%clk 0:02:57]} 3. Nc3 {[%clk 0:03:00]}  Qd6 {[%clk 0:02:56]} 4. Nf3 {[%clk 0:03:00]}  Bg4 {[%clk 0:02:46]} 5. Be2 {[%clk 0:02:59]}  c6 {[%clk 0:02:45]} 6. O-O {[%clk 0:02:59]}  Nf6 {[%clk 0:02:44]} 7. d4 {[%clk 0:02:59]}  e6 {[%clk 0:02:43]} 8. h3 {[%clk 0:02:59]}  Bh5 {[%clk 0:02:41]} 9. Bg5 {[%clk 0:02:56]}  Be7 {[%clk 0:02:40]} 10. Bxf6 {[%clk 0:02:53]}  Bxf6 {[%clk 0:02:39]} 11. Ne4 {[%clk 0:02:53]}  Qd8 {[%clk 0:02:36]} 12. Nxf6+ {[%clk 0:02:51]}  Qxf6 {[%clk 0:02:36]} 13. Ne5 {[%clk 0:02:51]}  Bxe2 {[%clk 0:02:31]} 14. Qxe2 {[%clk 0:02:52]}  O-O {[%clk 0:02:30]} 15. Rad1 {[%clk 0:02:49]}  Rd8 {[%clk 0:02:28]} 16. Rd3 {[%clk 0:02:46]}  Nd7 {[%clk 0:02:27]} 17. Rf3 {[%clk 0:02:41]}  Qh6 {[%clk 0:02:03]} 18. Nxf7 {[%clk 0:02:40]} 1-0


[Site "https://www.chess.com"]

[Event "Titled Tuesday Blitz January 10 Early 2023"]
[White "Ortega Amarelle, Mariano"]
[Black "Petrova, Irina"]
[WhiteFideId "3504301"]
[BlackFideId "14124122"]
[WhiteElo "2472"]
[BlackElo "2108"]
[Result "1-0"]
[Round "10"]
[TimeControl "180+2"]
[Date "2023.01.10"]
[WhiteClock "0:00:14"]
[BlackClock "0:00:06"]

1. c3 {[%clk 0:02:10]}  d6 {[%clk 0:03:00]} 2. d3 {[%clk 0:02:11]}  g6 {[%clk 0:03:00]} 3. Nd2 {[%clk 0:02:10]}  Bg7 {[%clk 0:03:01]} 4. e4 {[%clk 0:02:11]}  Nf6 {[%clk 0:03:00]} 5. Ngf3 {[%clk 0:02:11]}  O-O {[%clk 0:03:01]} 6. g3 {[%clk 0:02:10]}  c5 {[%clk 0:03:01]} 7. Bg2 {[%clk 0:02:10]}  Nc6 {[%clk 0:03:01]} 8. O-O {[%clk 0:02:10]}  Rb8 {[%clk 0:03:00]} 9. a4 {[%clk 0:02:09]}  Bd7 {[%clk 0:02:59]} 10. Nc4 {[%clk 0:02:07]}  b6 {[%clk 0:02:53]} 11. Re1 {[%clk 0:01:58]}  a6 {[%clk 0:02:53]} 12. e5 {[%clk 0:01:58]}  dxe5 {[%clk 0:02:41]} 13. Nfxe5 {[%clk 0:01:57]}  Nxe5 {[%clk 0:02:38]} 14. Nxe5 {[%clk 0:01:57]}  Re8 {[%clk 0:02:23]} 15. Nc6 {[%clk 0:01:40]}  Bxc6 {[%clk 0:02:22]} 16. Bxc6 {[%clk 0:01:41]}  Rf8 {[%clk 0:02:23]} 17. Bf4 {[%clk 0:01:40]}  Rc8 {[%clk 0:02:14]} 18. Bb7 {[%clk 0:01:39]}  Nd5 {[%clk 0:02:13]} 19. Bxc8 {[%clk 0:01:24]}  Qxc8 {[%clk 0:02:06]} 20. Bg5 {[%clk 0:01:20]}  Qd7 {[%clk 0:02:02]} 21. Qb3 {[%clk 0:01:03]}  e6 {[%clk 0:01:59]} 22. Rad1 {[%clk 0:01:01]}  Rc8 {[%clk 0:01:54]} 23. Qc4 {[%clk 0:00:56]}  b5 {[%clk 0:01:51]} 24. axb5 {[%clk 0:00:55]}  axb5 {[%clk 0:01:52]} 25. Qe4 {[%clk 0:00:55]}  h6 {[%clk 0:01:42]} 26. Bd2 {[%clk 0:00:54]}  c4 {[%clk 0:01:37]} 27. dxc4 {[%clk 0:00:50]}  Rxc4 {[%clk 0:01:38]} 28. Qe2 {[%clk 0:00:48]}  Qc8 {[%clk 0:01:28]} 29. Ra1 {[%clk 0:00:40]}  Kh7 {[%clk 0:01:27]} 30. Ra7 {[%clk 0:00:38]}  Qe8 {[%clk 0:01:19]} 31. Qf3 {[%clk 0:00:35]}  Rc7 {[%clk 0:01:12]} 32. Rxc7 {[%clk 0:00:33]}  Nxc7 {[%clk 0:01:13]} 33. Qb7 {[%clk 0:00:31]}  Qd8 {[%clk 0:00:59]} 34. Be3 {[%clk 0:00:21]}  Qd6 {[%clk 0:00:48]} 35. Qf3 {[%clk 0:00:18]}  Qd7 {[%clk 0:00:47]} 36. Qb7 {[%clk 0:00:17]}  Qd6 {[%clk 0:00:46]} 37. Bf4 {[%clk 0:00:17]}  e5 {[%clk 0:00:46]} 38. Be3 {[%clk 0:00:17]}  Kg8 {[%clk 0:00:41]} 39. Ra1 {[%clk 0:00:16]}  Ne6 {[%clk 0:00:38]} 40. Ra8+ {[%clk 0:00:15]}  Nf8 {[%clk 0:00:35]} 41. Qxb5 {[%clk 0:00:13]}  Qd1+ {[%clk 0:00:35]} 42. Qf1 {[%clk 0:00:13]}  Qd5 {[%clk 0:00:34]} 43. Ra1 {[%clk 0:00:12]}  Qb7 {[%clk 0:00:33]} 44. b4 {[%clk 0:00:12]}  e4 {[%clk 0:00:30]} 45. Rc1 {[%clk 0:00:13]}  Ne6 {[%clk 0:00:30]} 46. b5 {[%clk 0:00:13]}  Nc7 {[%clk 0:00:26]} 47. c4 {[%clk 0:00:13]}  Kh7 {[%clk 0:00:19]} 48. Rd1 {[%clk 0:00:13]}  Ne6 {[%clk 0:00:16]} 49. h4 {[%clk 0:00:13]}  Be5 {[%clk 0:00:11]} 50. Rd5 {[%clk 0:00:13]}  Bb8 {[%clk 0:00:10]} 51. Qd1 {[%clk 0:00:13]}  Ng7 {[%clk 0:00:10]} 52. Rd7 {[%clk 0:00:13]}  Qc8 {[%clk 0:00:09]} 53. Qd5 {[%clk 0:00:12]}  Qe8 {[%clk 0:00:03]} 54. Qxf7 {[%clk 0:00:11]}  Qh8 {[%clk 0:00:01]} 55. Bd4 {[%clk 0:00:10]}  Qg8 {[%clk 0:00:01]} 56. Qxg7+ {[%clk 0:00:10]}  Qxg7 {[%clk 0:00:01]} 57. Rxg7+ {[%clk 0:00:11]}  Kh8 {[%clk 0:00:02]} 58. Rb7+ {[%clk 0:00:11]}  Kg8 {[%clk 0:00:03]} 59. Rxb8+ {[%clk 0:00:11]}  Kf7 {[%clk 0:00:03]} 60. Rb6 {[%clk 0:00:12]}  Ke8 {[%clk 0:00:03]} 61. Rc6 {[%clk 0:00:13]}  Kd7 {[%clk 0:00:04]} 62. Kf1 {[%clk 0:00:13]}  Kd8 {[%clk 0:00:04]} 63. Ke2 {[%clk 0:00:13]}  Kd7 {[%clk 0:00:05]} 64. Ke3 {[%clk 0:00:14]}  Kd8 {[%clk 0:00:05]} 65. Kxe4 {[%clk 0:00:14]}  Kd7 {[%clk 0:00:06]} 1-0


[Site "https://www.chess.com"]

[Event "Titled Tuesday Blitz January 10 Early 2023"]
[White "Carbone, Diego"]
[Black "Guimaraes, Wagner Peixoto"]
[WhiteFideId "3002179"]
[BlackFideId "2100940"]
[WhiteElo "2336"]
[BlackElo "2194"]
[Result "0-1"]
[Round "10"]
[TimeControl "180+2"]
[Date "2023.01.10"]
[WhiteClock "0:00:09"]
[BlackClock "0:00:17"]

1. d4 {[%clk 0:02:58]}  Nf6 {[%clk 0:02:59]} 2. c4 {[%clk 0:02:57]}  g6 {[%clk 0:02:58]} 3. g3 {[%clk 0:02:56]}  Bg7 {[%clk 0:02:56]} 4. Bg2 {[%clk 0:02:57]}  O-O {[%clk 0:02:56]} 5. Nc3 {[%clk 0:02:58]}  d6 {[%clk 0:02:55]} 6. Nf3 {[%clk 0:02:58]}  Nc6 {[%clk 0:02:55]} 7. O-O {[%clk 0:02:58]}  a6 {[%clk 0:02:55]} 8. b3 {[%clk 0:02:58]}  Rb8 {[%clk 0:02:56]} 9. d5 {[%clk 0:02:57]}  Na7 {[%clk 0:02:50]} 10. Be3 {[%clk 0:02:19]}  c5 {[%clk 0:02:48]} 11. h3 {[%clk 0:02:09]}  b5 {[%clk 0:02:45]} 12. Rc1 {[%clk 0:02:09]}  b4 {[%clk 0:02:43]} 13. Nb1 {[%clk 0:02:04]}  Qa5 {[%clk 0:02:38]} 14. Qd2 {[%clk 0:01:56]}  Ne4 {[%clk 0:02:28]} 15. Qc2 {[%clk 0:01:56]}  Bf5 {[%clk 0:02:28]} 16. Nh4 {[%clk 0:01:56]}  Nxg3 {[%clk 0:02:27]} 17. Nxf5 {[%clk 0:01:47]}  Nxf5 {[%clk 0:02:27]} 18. Bf4 {[%clk 0:01:36]}  Rbe8 {[%clk 0:02:05]} 19. Rcd1 {[%clk 0:01:31]}  Nd4 {[%clk 0:02:02]} 20. Qd2 {[%clk 0:01:29]}  e5 {[%clk 0:01:53]} 21. dxe6 {[%clk 0:01:25]}  fxe6 {[%clk 0:01:49]} 22. e3 {[%clk 0:01:24]}  e5 {[%clk 0:01:42]} 23. exd4 {[%clk 0:00:59]}  exf4 {[%clk 0:01:35]} 24. dxc5 {[%clk 0:00:59]}  f3 {[%clk 0:01:33]} 25. Qd5+ {[%clk 0:00:55]}  Kh8 {[%clk 0:01:30]} 26. Bxf3 {[%clk 0:00:56]}  Rf5 {[%clk 0:01:28]} 27. Qb7 {[%clk 0:00:35]}  Qxc5 {[%clk 0:01:24]} 28. Rd5 {[%clk 0:00:29]}  Rxd5 {[%clk 0:01:17]} 29. Bxd5 {[%clk 0:00:30]}  Rf8 {[%clk 0:01:11]} 30. Nd2 {[%clk 0:00:26]}  Nc8 {[%clk 0:00:43]} 31. Ne4 {[%clk 0:00:26]}  Qd4 {[%clk 0:00:44]} 32. Kg2 {[%clk 0:00:20]}  Qe5 {[%clk 0:00:40]} 33. Qxa6 {[%clk 0:00:19]}  h6 {[%clk 0:00:33]} 34. Qb7 {[%clk 0:00:19]}  Ne7 {[%clk 0:00:31]} 35. Re1 {[%clk 0:00:17]}  Nf5 {[%clk 0:00:27]} 36. Re2 {[%clk 0:00:13]}  Nh4+ {[%clk 0:00:22]} 37. Kh1 {[%clk 0:00:12]}  Qf5 {[%clk 0:00:20]} 38. Re3 {[%clk 0:00:09]}  Nf3 {[%clk 0:00:18]} 39. Qc6 {[%clk 0:00:09]}  Qxh3# {[%clk 0:00:17]} 0-1


[Site "https://www.chess.com"]

[Event "Titled Tuesday Blitz January 10 Early 2023"]
[White "Osinovsky, Stepan"]
[Black "Vaglio Munoz, Jaime"]
[WhiteFideId "4157354"]
[BlackFideId "6500145"]
[WhiteElo "2241"]
[BlackElo "2174"]
[Result "1-0"]
[Round "10"]
[TimeControl "180+2"]
[Date "2023.01.10"]
[WhiteClock "0:00:16"]
[BlackClock "0:00:34"]

1. e4 {[%clk 0:02:57]}  c5 {[%clk 0:02:48]} 2. Nf3 {[%clk 0:02:57]}  Qa5 {[%clk 0:02:40]} 3. g3 {[%clk 0:02:48]}  Nf6 {[%clk 0:02:38]} 4. e5 {[%clk 0:02:42]}  Nd5 {[%clk 0:02:37]} 5. Bg2 {[%clk 0:02:42]}  e6 {[%clk 0:02:37]} 6. O-O {[%clk 0:02:42]}  Nc6 {[%clk 0:02:36]} 7. Nc3 {[%clk 0:02:36]}  Nxc3 {[%clk 0:02:30]} 8. dxc3 {[%clk 0:02:37]}  Be7 {[%clk 0:02:29]} 9. Bg5 {[%clk 0:02:33]}  Bxg5 {[%clk 0:02:20]} 10. Nxg5 {[%clk 0:02:34]}  Nxe5 {[%clk 0:02:19]} 11. Qh5 {[%clk 0:01:47]}  h6 {[%clk 0:02:09]} 12. Rfe1 {[%clk 0:01:46]}  Ng6 {[%clk 0:02:07]} 13. Nxf7 {[%clk 0:01:39]}  Kxf7 {[%clk 0:02:05]} 14. Be4 {[%clk 0:01:35]}  Ke7 {[%clk 0:01:55]} 15. Qxg6 {[%clk 0:01:33]}  Rg8 {[%clk 0:01:52]} 16. Rad1 {[%clk 0:01:19]}  Qd8 {[%clk 0:01:49]} 17. f4 {[%clk 0:00:58]}  Qf8 {[%clk 0:01:49]} 18. Bg2 {[%clk 0:00:43]}  Qf6 {[%clk 0:01:47]} 19. Qd3 {[%clk 0:00:43]}  Kf7 {[%clk 0:01:43]} 20. f5 {[%clk 0:00:39]}  Ke8 {[%clk 0:01:05]} 21. fxe6 {[%clk 0:00:30]}  dxe6 {[%clk 0:01:04]} 22. Bxb7 {[%clk 0:00:26]}  Bxb7 {[%clk 0:00:58]} 23. Qd7+ {[%clk 0:00:25]}  Kf8 {[%clk 0:00:57]} 24. Qxb7 {[%clk 0:00:25]}  Re8 {[%clk 0:00:51]} 25. Rf1 {[%clk 0:00:24]}  Re7 {[%clk 0:00:51]} 26. Rxf6+ {[%clk 0:00:19]}  gxf6 {[%clk 0:00:52]} 27. Rd7 {[%clk 0:00:19]}  Kf7 {[%clk 0:00:53]} 28. Rxe7+ {[%clk 0:00:18]}  Kg6 {[%clk 0:00:54]} 29. Rxe6 {[%clk 0:00:18]}  Kf5 {[%clk 0:00:55]} 30. Qd5+ {[%clk 0:00:18]}  Kg6 {[%clk 0:00:54]} 31. Qe4+ {[%clk 0:00:18]}  Kh5 {[%clk 0:00:40]} 32. Rxf6 {[%clk 0:00:16]}  Rg5 {[%clk 0:00:34]} 33. Qh4# {[%clk 0:00:16]} 1-0


[Site "https://www.chess.com"]

[Event "Titled Tuesday Blitz January 10 Early 2023"]
[White "Szyszylo, Rafal"]
[Black "Skurikhin, Dmitrij"]
[WhiteFideId "1109626"]
[BlackFideId "4161297"]
[WhiteElo "2091"]
[BlackElo "2297"]
[Result "1-0"]
[Round "10"]
[TimeControl "180+2"]
[Date "2023.01.10"]
[WhiteClock "0:00:15"]
[BlackClock "0:00:59"]

1. e4 {[%clk 0:03:00]}  e6 {[%clk 0:02:59]} 2. d4 {[%clk 0:02:58]}  d5 {[%clk 0:02:57]} 3. e5 {[%clk 0:02:59]}  c5 {[%clk 0:02:54]} 4. c3 {[%clk 0:02:59]}  Nc6 {[%clk 0:02:53]} 5. Nf3 {[%clk 0:03:00]}  Qb6 {[%clk 0:02:53]} 6. Be2 {[%clk 0:03:00]}  cxd4 {[%clk 0:02:51]} 7. cxd4 {[%clk 0:03:00]}  Bd7 {[%clk 0:02:52]} 8. O-O {[%clk 0:02:57]}  Nge7 {[%clk 0:02:51]} 9. Na3 {[%clk 0:02:57]}  Nf5 {[%clk 0:02:49]} 10. Nc2 {[%clk 0:02:57]}  Be7 {[%clk 0:02:49]} 11. a3 {[%clk 0:02:55]}  g5 {[%clk 0:02:44]} 12. b4 {[%clk 0:02:36]}  g4 {[%clk 0:02:43]} 13. Nfe1 {[%clk 0:02:37]}  Ncxd4 {[%clk 0:02:42]} 14. Bxg4 {[%clk 0:02:29]}  Rg8 {[%clk 0:02:35]} 15. h3 {[%clk 0:02:14]}  Bb5 {[%clk 0:02:30]} 16. Nd3 {[%clk 0:01:58]}  Rc8 {[%clk 0:02:24]} 17. Nce1 {[%clk 0:01:53]}  Nh4 {[%clk 0:01:58]} 18. Be3 {[%clk 0:01:30]}  h5 {[%clk 0:01:56]} 19. Bxh5 {[%clk 0:01:28]}  Rxg2+ {[%clk 0:01:54]} 20. Nxg2 {[%clk 0:01:20]}  Nxg2 {[%clk 0:01:52]} 21. Kxg2 {[%clk 0:01:20]}  Rc3 {[%clk 0:01:49]} 22. Be2 {[%clk 0:01:08]}  f6 {[%clk 0:01:44]} 23. a4 {[%clk 0:00:53]}  Bc4 {[%clk 0:01:42]} 24. a5 {[%clk 0:00:52]}  Qb5 {[%clk 0:01:39]} 25. Bxd4 {[%clk 0:00:52]}  Bxd3 {[%clk 0:01:36]} 26. Bxc3 {[%clk 0:00:52]}  Bxe2 {[%clk 0:01:32]} 27. Qd4 {[%clk 0:00:44]}  fxe5 {[%clk 0:01:25]} 28. Qxe5 {[%clk 0:00:40]}  Qd3 {[%clk 0:01:24]} 29. Qe3 {[%clk 0:00:35]}  Qg6+ {[%clk 0:01:22]} 30. Qg3 {[%clk 0:00:35]}  Qe4+ {[%clk 0:01:21]} 31. Kg1 {[%clk 0:00:31]}  Bh4 {[%clk 0:01:17]} 32. Qg8+ {[%clk 0:00:28]}  Kd7 {[%clk 0:01:16]} 33. Rfe1 {[%clk 0:00:22]}  Qf3 {[%clk 0:01:14]} 34. Rxe2 {[%clk 0:00:22]}  Qxe2 {[%clk 0:01:12]} 35. Qh7+ {[%clk 0:00:21]}  Be7 {[%clk 0:01:10]} 36. Bf6 {[%clk 0:00:19]}  Kc6 {[%clk 0:01:08]} 37. Bxe7 {[%clk 0:00:18]}  d4 {[%clk 0:01:08]} 38. Rc1+ {[%clk 0:00:17]}  Kb5 {[%clk 0:01:08]} 39. Qc2 {[%clk 0:00:16]}  Qe5 {[%clk 0:01:04]} 40. Qc4+ {[%clk 0:00:15]}  Ka4 {[%clk 0:01:03]} 41. b5+ {[%clk 0:00:15]}  Kxa5 {[%clk 0:00:59]} 42. Bd8+ {[%clk 0:00:15]}  b6 {[%clk 0:00:59]} 43. Ra1# {[%clk 0:00:15]} 1-0


[Site "https://www.chess.com"]

[Event "Titled Tuesday Blitz January 10 Early 2023"]
[White "Ghosh, Chanchal Kumer"]
[Black "Buscar, Michael"]
[WhiteFideId "10201858"]
[BlackFideId "2603616"]
[WhiteElo "2020"]
[BlackElo "2041"]
[Result "0-1"]
[Round "10"]
[TimeControl "180+2"]
[Date "2023.01.10"]
[WhiteClock "0:00:05"]
[BlackClock "0:01:19"]

1. e4 {[%clk 0:03:00]}  c5 {[%clk 0:02:59]} 2. Nf3 {[%clk 0:03:01]}  Nc6 {[%clk 0:03:00]} 3. d4 {[%clk 0:03:01]}  cxd4 {[%clk 0:03:01]} 4. Nxd4 {[%clk 0:03:01]}  Nf6 {[%clk 0:03:01]} 5. Nc3 {[%clk 0:03:01]}  e5 {[%clk 0:03:01]} 6. Ndb5 {[%clk 0:03:01]}  h6 {[%clk 0:03:01]} 7. Nd5 {[%clk 0:02:51]}  Nxd5 {[%clk 0:03:02]} 8. exd5 {[%clk 0:02:51]}  a6 {[%clk 0:03:02]} 9. dxc6 {[%clk 0:02:32]}  axb5 {[%clk 0:03:03]} 10. cxd7+ {[%clk 0:02:27]}  Bxd7 {[%clk 0:03:03]} 11. Qd5 {[%clk 0:02:21]}  Qc7 {[%clk 0:03:00]} 12. Bxb5 {[%clk 0:02:15]}  Qa5+ {[%clk 0:02:59]} 13. Bd2 {[%clk 0:01:48]}  Qxb5 {[%clk 0:02:57]} 14. Qxb5 {[%clk 0:01:46]}  Bxb5 {[%clk 0:02:57]} 15. a3 {[%clk 0:01:43]}  Be7 {[%clk 0:02:55]} 16. O-O-O {[%clk 0:01:43]}  O-O {[%clk 0:02:53]} 17. Bc3 {[%clk 0:01:41]}  f6 {[%clk 0:02:44]} 18. Rhe1 {[%clk 0:01:36]}  Bc5 {[%clk 0:02:41]} 19. Rd5 {[%clk 0:01:25]}  Rfc8 {[%clk 0:02:29]} 20. f4 {[%clk 0:00:51]}  exf4 {[%clk 0:02:26]} 21. Kb1 {[%clk 0:00:35]}  Bc4 {[%clk 0:02:02]} 22. Rd7 {[%clk 0:00:33]}  b5 {[%clk 0:02:02]} 23. Re4 {[%clk 0:00:19]}  Re8 {[%clk 0:01:59]} 24. Rxe8+ {[%clk 0:00:16]}  Rxe8 {[%clk 0:01:59]} 25. b3 {[%clk 0:00:16]}  Be6 {[%clk 0:01:52]} 26. Rb7 {[%clk 0:00:16]}  Bxa3 {[%clk 0:01:46]} 27. Rxb5 {[%clk 0:00:16]}  Bf8 {[%clk 0:01:43]} 28. Rb7 {[%clk 0:00:15]}  Bd5 {[%clk 0:01:42]} 29. Rb5 {[%clk 0:00:14]}  Bxg2 {[%clk 0:01:42]} 30. b4 {[%clk 0:00:13]}  f3 {[%clk 0:01:40]} 31. Rf5 {[%clk 0:00:12]}  Kf7 {[%clk 0:01:37]} 32. Kb2 {[%clk 0:00:11]}  Kg6 {[%clk 0:01:36]} 33. Rf4 {[%clk 0:00:11]}  Kg5 {[%clk 0:01:36]} 34. Bd2 {[%clk 0:00:09]}  Kg6 {[%clk 0:01:29]} 35. c4 {[%clk 0:00:07]}  Re2 {[%clk 0:01:27]} 36. Kc1 {[%clk 0:00:05]}  f2 {[%clk 0:01:19]} 0-1


[Site "https://www.chess.com"]

[Event "Titled Tuesday Blitz January 10 Early 2023"]
[White "Chos, Alexey"]
[Black "Levine, David"]
[WhiteFideId "14117762"]
[BlackFideId "2011611"]
[WhiteElo "2296"]
[BlackElo "2040"]
[Result "1-0"]
[Round "10"]
[TimeControl "180+2"]
[Date "2023.01.10"]
[WhiteClock "0:01:16"]
[BlackClock "0:00:11"]

1. Nf3 {[%clk 0:02:49]}  d5 {[%clk 0:02:58]} 2. c4 {[%clk 0:02:49]}  e6 {[%clk 0:02:55]} 3. g3 {[%clk 0:02:48]}  Nf6 {[%clk 0:02:54]} 4. Bg2 {[%clk 0:02:49]}  Be7 {[%clk 0:02:51]} 5. O-O {[%clk 0:02:49]}  O-O {[%clk 0:02:51]} 6. d4 {[%clk 0:02:44]}  dxc4 {[%clk 0:02:48]} 7. Ne5 {[%clk 0:02:41]}  c5 {[%clk 0:02:43]} 8. dxc5 {[%clk 0:02:28]}  Bxc5 {[%clk 0:02:39]} 9. Qxd8 {[%clk 0:02:28]}  Rxd8 {[%clk 0:02:38]} 10. Nxc4 {[%clk 0:02:27]}  Nc6 {[%clk 0:02:37]} 11. Nc3 {[%clk 0:02:27]}  Bd7 {[%clk 0:02:25]} 12. Bg5 {[%clk 0:02:26]}  Be7 {[%clk 0:02:23]} 13. Rad1 {[%clk 0:02:23]}  Rac8 {[%clk 0:02:18]} 14. Nd6 {[%clk 0:02:14]}  Rb8 {[%clk 0:02:11]} 15. Bf4 {[%clk 0:02:12]}  Nh5 {[%clk 0:01:51]} 16. Be3 {[%clk 0:02:03]}  b6 {[%clk 0:01:26]} 17. Ndb5 {[%clk 0:01:53]}  a6 {[%clk 0:01:19]} 18. Nc7 {[%clk 0:01:48]}  a5 {[%clk 0:00:51]} 19. Na6 {[%clk 0:01:35]}  Rbc8 {[%clk 0:00:49]} 20. Bxb6 {[%clk 0:01:33]}  Ne5 {[%clk 0:00:21]} 21. Bxd8 {[%clk 0:01:29]}  Bxd8 {[%clk 0:00:21]} 22. h3 {[%clk 0:01:26]}  Be8 {[%clk 0:00:16]} 23. Ne4 {[%clk 0:01:19]}  Nc4 {[%clk 0:00:14]} 24. b3 {[%clk 0:01:16]}  Na3 {[%clk 0:00:11]} 25. Nd6 {[%clk 0:01:16]} 1-0


[Site "https://www.chess.com"]

[Event "Titled Tuesday Blitz January 10 Early 2023"]
[White "Mendez Machado, Andre"]
[Black "Rian, Kapriaga"]
[WhiteFideId "6603793"]
[BlackFideId "7103263"]
[WhiteElo "1974"]
[BlackElo "2089"]
[Result "0-1"]
[Round "10"]
[TimeControl "180+2"]
[Date "2023.01.10"]
[WhiteClock "0:00:10"]
[BlackClock "0:00:18"]

1. e4 {[%clk 0:02:57]}  c6 {[%clk 0:02:59]} 2. d4 {[%clk 0:02:57]}  d5 {[%clk 0:02:59]} 3. f3 {[%clk 0:02:56]}  e6 {[%clk 0:02:58]} 4. Nc3 {[%clk 0:02:55]}  Bb4 {[%clk 0:02:56]} 5. Bd2 {[%clk 0:02:53]}  Nd7 {[%clk 0:02:52]} 6. Bd3 {[%clk 0:02:41]}  Ne7 {[%clk 0:02:51]} 7. a3 {[%clk 0:02:25]}  Bxc3 {[%clk 0:02:49]} 8. Bxc3 {[%clk 0:02:26]}  O-O {[%clk 0:02:48]} 9. Nh3 {[%clk 0:01:58]}  b6 {[%clk 0:02:41]} 10. O-O {[%clk 0:01:55]}  a5 {[%clk 0:02:39]} 11. f4 {[%clk 0:01:39]}  Ba6 {[%clk 0:02:31]} 12. Qe2 {[%clk 0:01:22]}  Bxd3 {[%clk 0:02:29]} 13. cxd3 {[%clk 0:01:22]}  Re8 {[%clk 0:02:10]} 14. b4 {[%clk 0:01:11]}  a4 {[%clk 0:02:00]} 15. Kh1 {[%clk 0:01:06]}  b5 {[%clk 0:01:58]} 16. Rae1 {[%clk 0:01:01]}  h6 {[%clk 0:01:55]} 17. Bd2 {[%clk 0:00:55]}  f5 {[%clk 0:01:47]} 18. g4 {[%clk 0:00:48]}  fxe4 {[%clk 0:01:39]} 19. dxe4 {[%clk 0:00:47]}  dxe4 {[%clk 0:01:35]} 20. Qxe4 {[%clk 0:00:47]}  Nd5 {[%clk 0:01:33]} 21. g5 {[%clk 0:00:46]}  Qe7 {[%clk 0:01:09]} 22. gxh6 {[%clk 0:00:24]}  gxh6 {[%clk 0:01:07]} 23. Rg1+ {[%clk 0:00:22]}  Kh8 {[%clk 0:01:05]} 24. Qf3 {[%clk 0:00:17]}  Qf7 {[%clk 0:01:00]} 25. Ref1 {[%clk 0:00:14]}  Rg8 {[%clk 0:00:57]} 26. Qe4 {[%clk 0:00:13]}  Qf5 {[%clk 0:00:50]} 27. Qe2 {[%clk 0:00:11]}  Qxh3 {[%clk 0:00:44]} 28. Rxg8+ {[%clk 0:00:11]}  Rxg8 {[%clk 0:00:42]} 29. f5 {[%clk 0:00:11]}  exf5 {[%clk 0:00:36]} 30. Rf3 {[%clk 0:00:11]}  Qg4 {[%clk 0:00:32]} 31. Qf2 {[%clk 0:00:11]}  f4 {[%clk 0:00:26]} 32. Bxf4 {[%clk 0:00:10]}  Nxf4 {[%clk 0:00:24]} 33. Rxf4 {[%clk 0:00:11]}  Qd1+ {[%clk 0:00:23]} 34. Qf1 {[%clk 0:00:10]}  Qxf1+ {[%clk 0:00:23]} 35. Rxf1 {[%clk 0:00:11]}  Rg4 {[%clk 0:00:19]} 36. Rf8+ {[%clk 0:00:10]}  Nxf8 {[%clk 0:00:18]} 0-1


[Site "https://www.chess.com"]

[Event "Titled Tuesday Blitz January 10 Early 2023"]
[White "Flis, Pawel"]
[Black "Sargissyan, Sargis"]
[WhiteFideId "1112864"]
[BlackFideId "13303210"]
[WhiteElo "1879"]
[BlackElo "2234"]
[Result "0-1"]
[Round "10"]
[TimeControl "180+2"]
[Date "2023.01.10"]
[WhiteClock "0:00:07"]
[BlackClock "0:00:10"]

1. e4 {[%clk 0:03:00]}  c5 {[%clk 0:02:58]} 2. Nf3 {[%clk 0:03:00]}  d6 {[%clk 0:02:58]} 3. d4 {[%clk 0:03:00]}  cxd4 {[%clk 0:02:59]} 4. Nxd4 {[%clk 0:03:01]}  Nf6 {[%clk 0:02:59]} 5. Nc3 {[%clk 0:03:01]}  a6 {[%clk 0:03:00]} 6. a4 {[%clk 0:03:01]}  e6 {[%clk 0:02:56]} 7. Be3 {[%clk 0:03:00]}  Be7 {[%clk 0:02:54]} 8. Be2 {[%clk 0:03:00]}  O-O {[%clk 0:02:53]} 9. O-O {[%clk 0:03:01]}  b6 {[%clk 0:02:51]} 10. f4 {[%clk 0:02:59]}  Qc7 {[%clk 0:02:51]} 11. Bf3 {[%clk 0:02:58]}  Bb7 {[%clk 0:02:39]} 12. Qe1 {[%clk 0:02:42]}  Nbd7 {[%clk 0:02:37]} 13. Qg3 {[%clk 0:02:03]}  d5 {[%clk 0:01:47]} 14. exd5 {[%clk 0:01:52]}  Nxd5 {[%clk 0:01:46]} 15. Nxd5 {[%clk 0:01:51]}  Bxd5 {[%clk 0:01:45]} 16. Bxd5 {[%clk 0:01:50]}  exd5 {[%clk 0:01:46]} 17. Nf5 {[%clk 0:01:40]}  Bf6 {[%clk 0:01:46]} 18. c3 {[%clk 0:01:40]}  Nc5 {[%clk 0:01:42]} 19. Bd4 {[%clk 0:01:31]}  Ne4 {[%clk 0:01:22]} 20. Qg4 {[%clk 0:01:26]}  Bxd4+ {[%clk 0:01:22]} 21. cxd4 {[%clk 0:01:24]}  g6 {[%clk 0:01:03]} 22. Ne3 {[%clk 0:01:03]}  f5 {[%clk 0:01:00]} 23. Qh4 {[%clk 0:00:46]}  Qg7 {[%clk 0:00:53]} 24. Rab1 {[%clk 0:00:40]}  Qxd4 {[%clk 0:00:49]} 25. Qe1 {[%clk 0:00:40]}  Rad8 {[%clk 0:00:44]} 26. Kh1 {[%clk 0:00:36]}  Rfe8 {[%clk 0:00:42]} 27. Nc2 {[%clk 0:00:26]}  Qd2 {[%clk 0:00:38]} 28. Nb4 {[%clk 0:00:18]}  a5 {[%clk 0:00:21]} 29. Nc6 {[%clk 0:00:16]}  Rd6 {[%clk 0:00:21]} 30. Ne5 {[%clk 0:00:16]}  Qxe1 {[%clk 0:00:19]} 31. Rfxe1 {[%clk 0:00:15]}  d4 {[%clk 0:00:18]} 32. Red1 {[%clk 0:00:14]}  Nf2+ {[%clk 0:00:18]} 33. Kg1 {[%clk 0:00:15]}  Nxd1 {[%clk 0:00:18]} 34. Rxd1 {[%clk 0:00:16]}  Rc8 {[%clk 0:00:18]} 35. h3 {[%clk 0:00:15]}  Rc2 {[%clk 0:00:18]} 36. Nd3 {[%clk 0:00:12]}  Kf7 {[%clk 0:00:17]} 37. Kh2 {[%clk 0:00:12]}  Re6 {[%clk 0:00:17]} 38. Kg3 {[%clk 0:00:12]}  Kf6 {[%clk 0:00:17]} 39. Ne5 {[%clk 0:00:09]}  Rxe5 {[%clk 0:00:15]} 40. fxe5+ {[%clk 0:00:09]}  Kxe5 {[%clk 0:00:16]} 41. Rf1 {[%clk 0:00:09]}  Rxb2 {[%clk 0:00:14]} 42. Re1+ {[%clk 0:00:10]}  Kd6 {[%clk 0:00:15]} 43. Re8 {[%clk 0:00:09]}  Kc5 {[%clk 0:00:11]} 44. Rh8 {[%clk 0:00:08]}  d3 {[%clk 0:00:11]} 45. Rxh7 {[%clk 0:00:08]}  d2 {[%clk 0:00:11]} 46. Rd7 {[%clk 0:00:08]}  Kc4 {[%clk 0:00:09]} 47. Kf4 {[%clk 0:00:08]}  Kc3 {[%clk 0:00:08]} 48. Kg5 {[%clk 0:00:08]}  Rb1 {[%clk 0:00:08]} 49. Kxg6 {[%clk 0:00:07]}  d1=Q {[%clk 0:00:08]} 50. Rxd1 {[%clk 0:00:05]}  Rxd1 {[%clk 0:00:08]} 51. Kxf5 {[%clk 0:00:05]}  b5 {[%clk 0:00:08]} 52. g4 {[%clk 0:00:04]}  bxa4 {[%clk 0:00:08]} 53. g5 {[%clk 0:00:04]}  a3 {[%clk 0:00:09]} 54. g6 {[%clk 0:00:04]}  a2 {[%clk 0:00:09]} 55. g7 {[%clk 0:00:05]}  Rg1 {[%clk 0:00:09]} 56. g8=Q {[%clk 0:00:06]}  Rxg8 {[%clk 0:00:09]} 57. h4 {[%clk 0:00:06]}  a1=Q {[%clk 0:00:10]} 58. h5 {[%clk 0:00:07]}  Qf1+ {[%clk 0:00:10]} 0-1


[Site "https://www.chess.com"]